bitfinex/quotes_SOLUSD_20260201
["timestamp","ask_amount","ask_price","bid_price","bid_amount"]
[1769935238419,0.46950408,106.02,105.99,13.33190336]
[1769935238620,0.46950408,106.02,106.0,3.42707471]
[1769935238819,0.46950408,106.02,105.99,13.33190336]
[1769935239216,0.46950408,106.03,106.0,13.33107546]
[1769935239419,9.71479993,106.04,106.01,0.47032106]
[1769935239816,12.85634162,106.06,106.02,0.47032106]
[1769935240017,9.42926691,106.06,106.03,0.47032106]
[1769935240232,53.2972412,106.07,106.03,3.89739577]
[1769935240233,39.15512331,106.07,106.03,3.89739577]
[1769935241132,0.1,106.07,106.05,0.47032106]
[1769935241310,0.1,106.07,106.06,0.47032106]
[1769935242138,0.1,106.07,106.05,0.47032106]
[1769935242735,0.1,106.07,106.06,0.47032106]
[1769935243029,36.41590043,106.1,106.06,0.47032106]
[1769935243030,0.46950408,106.11,106.07,0.47032106]
[1769935243332,0.46950408,106.11,106.08,9.89716872]
[1769935243540,12.32061496,106.12,106.08,9.89716872]
[1769935244325,12.94980963,106.13,106.1,0.46949245]
[1769935244526,3.42707471,106.12,106.08,9.89601501]
[1769935245435,3.42707471,106.09,106.05,0.46949245]
[1769935245637,3.71522361,106.09,106.05,13.32559187]
[1769935245942,3.99944516,106.1,106.06,9.89807342]
[1769935246139,3.99944516,106.1,106.06,13.32514813]
[1769935246332,3.71512202,106.11,106.07,0.46949245]
[1769935246530,0.28804731,106.1,106.07,0.46949245]
[1769935246729,3.71512202,106.1,106.07,0.46949245]
[1769935246926,3.71502159,106.1,106.06,9.89807342]
[1769935247422,3.71502159,106.09,106.06,9.42858097]
[1769935247744,0.28794688,106.09,106.05,13.32577523]
[1769935247940,3.71502159,106.09,106.05,13.32577523]
[1769935248142,0.14216157,106.1,106.04,23.57470853]
[1769935248143,0.2878476,106.07,106.04,9.89959904]
[1769935248339,13.42611766,106.08,106.04,9.89959904]
[1769935248722,0.57217074,106.06,106.03,0.46949245]
[1769935248950,0.5720726,106.09,106.05,0.46949245]
[1769935249141,3.71482417,106.09,106.05,3.42707471]
[1769935249343,0.42991103,106.09,106.06,0.46949245]
[1769935249650,29.91482417,106.11,106.07,0.46949245]
[1769935249854,29.91482417,106.11,106.04,33.0062732]
[1769935249855,3.71472716,106.11,106.08,0.46949245]
[1769935251240,13.13908061,106.11,106.08,0.46949245]
[1769935252254,3.71453647,106.09,106.05,0.46949245]
[1769935252457,3.71453647,106.09,106.05,13.32554383]
[1769935252636,9.7093944,106.1,106.07,0.46949245]
[1769935252840,0.28432314,106.1,106.07,0.46949245]
[1769935254250,13.13656293,106.1,106.07,0.46949245]
[1769935255352,13.42374679,106.1,106.07,0.46949245]
[1769935256658,13.42374679,106.1,106.06,9.89804417]
[1769935257156,9.99667208,106.1,106.06,9.89804417]
[1769935257350,13.42374679,106.1,106.06,9.89804417]
[1769935260068,9.99622979,106.1,106.06,0.46949245]
[1769935260250,0.28674157,106.08,106.05,0.46949245]
[1769935260458,3.71381628,106.08,106.04,0.46949245]
[1769935260664,0.28674157,106.06,106.03,9.90078548]
[1769935261260,3.71381628,106.06,106.02,13.32849133]
[1769935261461,0.28674157,106.06,106.03,3.42707471]
[1769935261868,3.71381628,106.06,106.03,0.46949245]
[1769935262065,0.28674157,106.06,106.04,9.43040362]
[1769935262253,13.14063206,106.08,106.04,9.89989607]
[1769935262563,0.28657168,106.08,106.05,3.42707471]
[1769935262778,13.1381884,106.11,106.07,0.46949245]
[1769935263154,3.71356291,106.1,106.07,0.46949245]
[1769935263357,3.80885291,106.1,106.07,0.46949245]
[1769935263558,3.80885291,106.1,106.06,0.46949245]
[1769935264275,3.99780353,106.09,106.04,13.32674066]
[1769935264482,0.28640568,106.08,106.04,13.32674066]
[1769935264650,0.28640568,106.08,106.05,0.46949245]
[1769935264852,0.28640568,106.08,106.05,9.89890842]
[1769935265076,13.23456723,106.1,106.06,9.89794806]
[1769935266673,0.23745157,106.1,106.07,9.89717267]
[1769935267064,0.23745157,106.1,106.07,0.46949245]
[1769935267878,3.66452628,106.1,106.07,0.46949245]
[1769935268375,0.23745157,106.1,106.07,0.46949245]
[1769935269374,13.08996523,106.1,106.07,0.46949245]
[1769935270550,3.71292866,106.09,106.05,0.45935566]
[1769935270772,3.71285343,106.09,106.05,0.45935566]
[1769935272351,0.28570434,106.05,106.02,9.43199172]
[1769935272568,3.71277905,106.07,106.03,0.45935566]
[1769935273582,3.70716016,106.07,106.03,0.45935566]
[1769935273879,9.4286253,106.06,106.03,0.45935566]
[1769935274071,12.85008112,106.06,106.03,0.45935566]
[1769935274584,3.70577896,106.05,106.01,13.31372098]
[1769935274957,3.70577896,106.05,106.02,0.45935566]
[1769935276279,13.13549682,106.05,106.02,0.45935566]
[1769935279280,3.70666292,106.08,106.04,0.45935566]
[1769935279580,3.70666292,106.07,106.04,0.45935566]
[1769935279771,3.42145582,106.06,106.04,0.45935566]
[1769935279969,0.28513929,106.04,106.01,0.45935566]
[1769935280175,3.70659511,106.05,106.01,0.45935566]
[1769935280565,13.13696268,106.05,106.01,0.45935566]
[1769935280976,3.42145582,106.04,106.01,0.45935566]
[1769935282181,9.43036757,106.05,106.02,0.45935566]
[1769935282591,12.85182339,106.05,106.02,0.45935566]
[1769935285995,0.28432314,106.05,106.02,0.45935566]
[1769935287185,3.42145582,106.04,106.01,9.89200468]
[1769935287570,9.71423899,106.05,106.02,0.45935566]
[1769935287795,13.13569481,106.05,106.02,0.45935566]
[1769935288595,13.42031893,106.05,106.02,0.45935566]
[1769935290493,13.42031893,106.05,106.01,9.89200468]
[1769935290689,3.42145582,106.04,106.01,9.89200468]
[1769935291793,0.28438385,106.03,106.0,9.89294698]
[1769935291990,3.70583967,106.03,106.0,0.45935566]
[1769935292189,3.70583967,106.01,105.98,9.89443702]
[1769935292496,3.70583967,106.02,105.98,9.89443702]
[1769935293294,13.13817,106.02,105.98,9.89443702]
[1769935295194,3.70566662,106.01,105.97,9.8958557]
[1769935295588,3.70566662,106.01,105.98,0.45935566]
[1769935295783,3.98998976,106.02,105.99,0.45935566]
[1769935295989,0.14216157,106.03,106.0,0.45935566]
[1769935296188,3.56361739,106.03,106.0,0.45935566]
[1769935297080,3.84766103,106.03,106.0,0.45935566]
[1769935297299,13.27910639,106.03,106.0,0.45935566]
[1769935299810,12.99506275,106.03,106.0,0.45935566]
[1769935300109,9.57360693,106.03,106.0,0.45935566]
[1769935301708,0.14216157,106.03,106.01,0.45631469]
[1769935302007,13.13521153,106.05,106.01,0.45631469]
[1769935302603,12.85009665,106.06,106.02,0.45631469]
[1769935302812,12.85009665,106.06,106.03,0.45631469]
[1769935303185,9.42864083,106.06,106.03,0.45631469]
[1769935303481,13.13377206,106.06,106.02,0.4850417]
[1769935304700,9.42864083,106.06,106.03,0.4850417]
[1769935304902,12.85009665,106.06,106.03,0.4850417]
[1769935305507,0.28432314,106.05,106.03,0.4850417]
[1769935306007,9.71383807,106.05,106.03,0.4850417]
[1769935308407,9.9972681,106.05,106.02,0.4850417]
[1769935308617,9.71383807,106.05,106.02,0.4850417]
[1769935309106,0.28432314,106.05,106.03,0.4850417]
[1769935309310,9.71251128,106.06,106.03,0.4850417]
[1769935309508,9.71251128,106.06,106.02,13.33834095]
[1769935309808,13.1339671,106.06,106.03,0.4850417]
[1769935311810,0.28324368,106.08,106.05,0.4850417]
[1769935311991,3.7046995,106.08,106.05,0.4850417]
[1769935312706,3.98902264,106.07,106.04,0.4850417]
[1769935312910,13.41717001,106.07,106.04,0.4850417]
[1769935313292,13.27500844,106.07,106.04,0.4850417]
[1769935313498,0.42536,106.05,106.02,0.4850417]
[1769935313692,0.28319843,106.06,106.03,0.4850417]
[1769935315110,9.71198574,106.06,106.03,0.4850417]
[1769935316197,13.13344156,106.06,106.03,0.4850417]
[1769935318014,0.28432314,106.05,106.02,0.4850417]
[1769935318514,0.28432314,106.05,106.03,0.4850417]
[1769935319009,9.71388099,106.05,106.03,0.4850417]
[1769935320719,9.99677684,106.05,106.02,0.4850417]
[1769935321011,9.7118942,106.06,106.03,0.4850417]
[1769935321217,29.62145582,106.08,106.04,0.4850417]
[1769935321411,26.2,106.08,106.05,0.4850417]
[1769935321616,26.48285459,106.08,106.05,0.4850417]
[1769935321817,9.70882408,106.09,106.05,3.90649752]
[1769935322120,9.70882408,106.09,106.06,0.4850417]
[1769935322899,13.1302799,106.09,106.06,0.4850417]
[1769935323098,3.70422931,106.08,106.05,0.4850417]
[1769935323521,36.69513731,106.09,106.05,0.4850417]
[1769935323725,3.70422931,106.08,106.05,0.4850417]
[1769935324916,3.70422931,106.08,106.03,3.90649752]
[1769935324917,0.28269423,106.06,106.03,3.90649752]
[1769935325110,9.99475377,106.07,106.03,0.4850417]
[1769935325423,9.99475377,106.07,106.03,3.90649752]
[1769935325424,13.41620959,106.07,106.03,3.90649752]
[1769935326613,13.13304061,106.06,106.03,0.4850417]
[1769935327113,9.42892951,106.06,106.03,0.4850417]
[1769935327424,9.42892951,106.06,106.03,3.90649752]
[1769935328006,13.13292644,106.06,106.03,0.4850417]
[1769935328325,9.71147062,106.06,106.03,0.4850417]
[1769935334012,9.71147062,106.06,106.01,23.58122514]
[1769935334013,0.2823243,106.04,106.01,3.90385809]
[1769935334211,0.2823243,106.04,106.01,0.48240227]
[1769935335230,9.71305603,106.04,106.01,0.48240227]
[1769935335636,13.13615482,106.04,106.0,0.48240227]
[1769935335810,0.2822553,106.03,106.0,0.48240227]
[1769935336209,13.13608582,106.04,106.0,0.48240227]
[1769935336414,9.71298703,106.04,106.01,0.48240227]
[1769935336720,13.13608582,106.04,106.0,13.33938569]
[1769935337231,9.7121621,106.05,106.01,3.90550106]
[1769935337533,0.28432314,106.04,106.02,0.48240227]
[1769935338428,9.7121621,106.05,106.02,0.48240227]
[1769935338650,9.4299407,106.05,106.02,0.48240227]
[1769935339330,0.28432314,106.06,106.03,0.48240227]
[1769935339537,3.70525354,106.07,106.04,0.48240227]
[1769935339739,0.28432314,106.05,106.03,0.48240227]
[1769935340620,33.27654818,106.08,106.03,0.48240227]
[1769935340932,0.28208963,106.07,106.04,0.48240227]
[1769935341235,3.70518842,106.07,106.04,0.48240227]
[1769935341534,13.13304718,106.07,106.04,0.48240227]
[1769935341737,3.42309879,106.07,106.05,0.48240227]
[1769935342436,0.28432314,106.07,106.05,0.48240227]
[1769935342733,0.28432314,106.07,106.06,0.48240227]
[1769935343517,0.28432314,106.07,106.05,0.48240227]
[1769935343929,13.13156765,106.09,106.05,0.48240227]
[1769935344127,3.42309879,106.09,106.05,0.48240227]
[1769935344331,0.14216157,106.09,106.06,0.48240227]
[1769935344536,0.28432314,106.09,106.06,0.48240227]
[1769935344918,3.8003526,106.1,106.05,3.42309879]
[1769935345423,0.49947087,106.08,106.04,12.85348068]
[1769935345626,10.20977814,106.09,106.05,3.42309879]
[1769935346638,10.20977814,106.09,106.05,12.8524945]
[1769935347038,10.20977814,106.09,106.06,0.48240227]
[1769935347730,13.63287693,106.09,106.06,0.48240227]
[1769935349819,0.28432314,106.09,106.06,0.48240227]
[1769935350019,10.20988469,106.09,106.06,0.48240227]
[1769935350620,13.35011852,106.08,106.04,0.48240227]
[1769935351827,9.42754886,106.08,106.06,0.48240227]
[1769935352031,9.52050173,106.1,106.07,0.48240227]
[1769935352240,13.44307139,106.1,106.07,0.48240227]
[1769935353732,9.52050173,106.1,106.07,0.48240227]
[1769935358750,13.43617744,106.1,106.07,0.48240227]
[1769935360946,10.01307865,106.1,106.07,0.48240227]
[1769935361443,0.37961314,106.1,106.07,9.42751293]
[1769935361742,0.37961314,106.1,106.06,3.42309879]
[1769935361743,9.42595909,106.09,106.06,3.88422852]
[1769935361934,33.8613427,106.1,106.07,0.46112973]
[1769935362135,10.29776449,106.1,106.07,0.46112973]
[1769935364129,9.80518757,106.1,106.07,0.46112973]
[1769935365456,10.27921806,106.1,106.07,0.46112973]
[1769935366130,10.27921806,106.1,106.08,0.49416722]
[1769935366131,9.80518757,106.1,106.08,0.49416722]
[1769935366340,0.47403049,106.09,106.06,13.34583622]
[1769935366653,10.27921806,106.1,106.07,0.49416722]
[1769935367947,9.80518757,106.1,106.07,0.49416722]
[1769935368336,77.68781448,106.13,106.08,3.42309879]
[1769935368337,4.84930134,106.13,106.08,3.42309879]
[1769935368542,3.99712928,106.13,106.09,3.91726601]
[1769935368741,0.47403049,106.12,106.09,0.49416722]
[1769935370240,9.89734495,106.12,106.09,0.49416722]
[1769935372257,13.32044374,106.12,106.09,0.49416722]
[1769935373359,9.89734495,106.12,106.09,0.49416722]
[1769935375560,13.32044374,106.12,106.09,0.49416722]
[1769935376659,0.47403049,106.11,106.08,13.34363642]
[1769935376860,0.47403049,106.11,106.09,0.49416722]
[1769935377158,9.89734495,106.12,106.09,0.49416722]
[1769935377361,0.47403049,106.11,106.09,0.49416722]
[1769935378235,0.47403049,106.12,106.09,9.91974758]
[1769935383690,0.47403049,106.12,106.1,0.49416722]
[1769935383863,0.47403049,106.12,106.09,9.91974758]
[1769935384368,0.47403049,106.12,106.1,0.49416722]
[1769935385267,0.47403049,106.12,106.09,9.42558036]
[1769935385867,0.47403049,106.12,106.09,12.84867915]
[1769935386442,0.47403049,106.1,106.05,23.57302324]
[1769935386650,3.89712928,106.1,106.06,12.85168167]
[1769935386863,0.47403049,106.1,106.06,12.85168167]
[1769935387259,0.47403049,106.1,106.06,13.09637163]
[1769935387853,9.89943677,106.1,106.06,13.09637163]
[1769935388372,9.89940056,106.1,106.06,13.09637163]
[1769935388553,0.47403049,106.1,106.07,0.2446718]
[1769935388753,0.47403049,106.1,106.07,3.66777059]
[1769935389869,9.89914549,106.1,106.07,0.2446718]
[1769935390054,0.47403049,106.1,106.07,0.2446718]
[1769935390677,0.47403049,106.1,106.07,9.67238834]
[1769935392882,0.45188517,106.09,106.06,9.67299728]
[1769935393060,0.45188517,106.09,106.05,13.09694547]
[1769935394359,9.87805217,106.09,106.05,13.09694547]
[1769935396955,0.45188517,106.08,106.04,13.0978379]
[1769935397161,0.45188517,106.07,106.04,9.43022173]
[1769935397364,0.45188517,106.07,106.03,36.43065458]
[1769935397570,0.45188517,106.07,106.04,9.67489096]
[1769935397962,0.45188517,106.07,106.04,0.24451738]
[1769935398265,0.45188517,106.07,106.03,13.09638246]
[1769935399264,9.87985631,106.07,106.03,13.09638246]
[1769935400163,0.45188517,106.06,106.02,13.09670802]
[1769935401173,9.87985631,106.07,106.04,0.24445375]
[1769935401381,0.5006728,106.06,106.03,12.85178614]
[1769935405493,0.5006728,106.08,106.05,3.42066764]
[1769935405666,0.5006728,106.09,106.05,3.42066764]
[1769935406669,0.5006728,106.09,106.05,12.84958601]
[1769935406869,0.5006728,106.09,106.05,9.42891837]
[1769935407983,0.5006728,106.09,106.05,12.84958601]
[1769935409583,0.5006728,106.09,106.06,3.42066764]
[1769935409963,0.5006728,106.09,106.05,36.42337196]
[1769935410369,0.5006728,106.1,106.05,36.42337196]
[1769935410572,13.34507669,106.12,106.07,3.42066764]
[1769935410870,0.5006728,106.12,106.08,3.42066764]
[1769935411076,0.5006728,106.12,106.08,12.84693406]
[1769935411275,0.5006728,106.11,106.08,12.84693406]
[1769935411583,0.5006728,106.11,106.08,9.42626642]
[1769935412689,0.5006728,106.11,106.08,3.42066764]
[1769935414694,0.5006728,106.11,106.08,12.84664938]
[1769935415189,0.5006728,106.11,106.08,9.42598174]
[1769935416191,0.5006728,106.11,106.08,12.84664938]
[1769935418092,0.5006728,106.11,106.07,12.84794208]
[1769935418486,0.5006728,106.1,106.06,12.84884626]
[1769935420496,0.5006728,106.1,106.07,9.4277364]
[1769935422197,0.5006728,106.09,106.06,12.84924884]
[1769935422792,0.4506728,106.09,106.06,12.89894684]
[1769935424287,9.42452193,106.11,106.07,0.04966245]
[1769935424797,0.4756728,106.1,106.07,0.04966245]
[1769935425799,0.4756728,106.11,106.08,0.04965088]
[1769935425976,0.4756728,106.11,106.08,3.47031852]
[1769935427186,0.4756728,106.11,106.08,12.89707388]
[1769935427412,0.4756728,106.11,106.08,9.47640624]
[1769935427991,0.4756728,106.1,106.07,9.42725406]
[1769935428194,0.4756728,106.1,106.07,9.47687099]
[1769935428395,0.4756728,106.1,106.06,12.89875733]
[1769935429693,9.42537105,106.1,106.06,12.89875733]
[1769935429896,0.4756728,106.09,106.06,12.89875733]
[1769935430098,0.4756728,106.08,106.04,0.04959495]
[1769935430292,0.4756728,106.07,106.04,0.04959495]
[1769935430497,0.4756728,106.07,106.03,12.90107042]
[1769935431809,0.4756728,106.06,106.03,12.90107042]
[1769935432310,0.4756728,106.06,106.02,9.48171277]
[1769935432491,0.4756728,106.04,106.01,9.43285685]
[1769935433402,0.4756728,106.04,105.99,0.04956291]
[1769935433403,0.4756728,106.03,105.99,0.04956291]
[1769935433602,0.4756728,106.02,105.99,9.43485234]
[1769935433907,0.4756728,106.02,105.99,12.85551998]
[1769935435912,0.4756728,106.02,105.99,12.90505194]
[1769935442199,0.4756728,106.04,106.0,0.04947319]
[1769935442409,0.4756728,106.04,106.01,3.42066764]
[1769935443316,0.4756728,106.04,106.01,12.85344161]
[1769935443520,0.4756728,106.04,106.01,9.43277397]
[1769935444103,0.4756728,106.04,106.01,9.48222846]
[1769935444915,0.4756728,106.04,106.01,9.43277397]
[1769935446622,0.4756728,106.04,106.01,3.47010386]
[1769935446817,0.4756728,106.04,106.0,0.04942724]
[1769935447000,0.4756728,106.03,106.0,0.04942724]
[1769935447727,0.4756728,106.03,105.99,3.470086]
[1769935448313,0.4756728,106.03,106.0,9.43396226]
[1769935455029,0.4756728,106.03,106.0,9.48331318]
[1769935457037,0.4756728,106.03,106.0,9.43396226]
[1769935457236,0.4756728,106.03,106.0,9.48329727]
[1769935458830,0.4756728,106.03,106.0,3.47237991]
[1769935459132,0.4756728,106.03,106.0,0.04933501]
[1769935460929,0.4756728,106.03,105.99,36.49302929]
[1769935462933,0.4756728,106.03,106.0,0.04928943]
[1769935469645,0.4756728,106.03,105.99,36.49297192]
[1769935470143,0.4756728,106.03,106.0,3.472285]
[1769935471825,0.4756728,106.03,106.0,0.0492401]
[1769935472227,0.4756728,106.03,105.99,27.0580994]
[1769935472520,0.4756728,106.03,106.0,0.04922672]
[1769935473452,0.4756728,106.03,106.0,0.04922014]
[1769935473826,0.4756728,106.03,105.99,36.49293867]
[1769935475445,0.48698716,106.02,105.99,36.49293867]
[1769935475742,0.48698716,106.02,105.99,9.43485234]
[1769935485861,0.49992452,106.0,105.96,13.10928803]
[1769935487156,0.49992452,105.99,105.96,13.1092576]
[1769935487354,0.49992452,105.99,105.96,9.63708257]
[1769935487851,0.49992452,106.0,105.98,3.4230449]
[1769935488053,0.49992452,106.02,105.99,12.90622987]
[1769935488646,0.49992452,106.03,106.0,3.47216416]
[1769935488846,0.49992452,106.03,106.0,0.04911926]
[1769935489048,0.49992452,106.03,105.99,12.90622453]
[1769935493157,0.49992452,106.03,106.0,3.47213807]
[1769935493337,0.49992452,106.04,106.01,3.47213807]
[1769935494762,0.49992452,106.04,106.02,9.4321826]
[1769935498460,0.49992452,106.04,106.01,9.48178595]
[1769935500163,0.49992452,106.04,106.01,9.43269278]
[1769935500364,0.49992452,106.02,105.99,9.48350466]
[1769935500861,0.49992452,106.03,106.0,12.90594239]
[1769935501059,0.49992452,106.03,106.0,12.85688795]
[1769935501644,0.49992452,106.03,106.0,12.90594239]
[1769935502756,0.49992452,106.03,106.0,0.04905444]
[1769935502963,0.49992452,106.03,105.99,3.4230449]
[1769935503148,0.49992452,106.03,105.99,3.4720902]
[1769935504357,0.49992452,106.0,105.97,9.436633]
[1769935504662,0.49992452,105.99,105.96,9.63711063]
[1769935504844,0.49992452,105.97,105.95,0.2]
[1769935505050,0.49992452,105.96,105.95,0.2]
[1769935505367,0.49992452,105.95,105.92,0.2]
[1769935505569,0.49992452,105.94,105.92,0.2]
[1769935506549,0.49992452,105.94,105.89,10.12724942]
[1769935506550,0.49992452,105.92,105.89,10.12724942]
[1769935506760,0.49992452,105.92,105.89,9.64367904]
[1769935506960,0.49992452,105.92,105.89,10.12777486]
[1769935507957,0.49992452,105.92,105.88,27.23407914]
[1769935507958,0.4690537,105.9,105.88,0.2]
[1769935508155,9.44116268,105.92,105.89,9.9257356]
[1769935508156,0.4690537,105.92,105.89,9.9257356]
[1769935508350,0.4690537,105.92,105.89,13.3487805]
[1769935508556,0.4690537,105.93,105.9,3.90513857]
[1769935508756,0.4690537,105.93,105.9,13.34764377]
[1769935508957,0.4690537,105.92,105.89,9.92566822]
[1769935509161,0.4690537,105.91,105.88,9.64427061]
[1769935509470,0.4690537,105.9,105.88,0.2]
[1769935512356,4.74432455,105.93,105.89,3.90513857]
[1769935512549,0.4690537,105.94,105.91,3.90513857]
[1769935513875,0.4690537,105.94,105.91,0.48209367]
[1769935514259,0.4690537,105.94,105.91,3.90513857]
[1769935514674,0.4690537,105.94,105.91,13.34708567]
[1769935514872,0.4690537,105.94,105.91,3.90513857]
[1769935515174,0.4690537,105.93,105.9,3.90513857]
[1769935515378,0.4690537,105.93,105.9,0.48209367]
[1769935515565,0.4690537,105.93,105.89,12.86601661]
[1769935515566,0.4690537,105.92,105.89,0.48209367]
[1769935515767,0.4690537,105.92,105.89,3.90513857]
[1769935516771,4.27527085,105.93,105.9,3.4230449]
[1769935516973,0.4690537,105.94,105.91,3.90513857]
[1769935517488,0.4690537,105.94,105.91,3.4230449]
[1769935517660,0.4690537,105.94,105.9,3.91125593]
[1769935518172,0.4690537,105.94,105.9,13.35351877]
[1769935518567,0.4690537,105.93,105.89,13.3546009]
[1769935518878,0.4690537,105.92,105.89,3.91125593]
[1769935519176,0.4690537,105.91,105.88,0.2]
[1769935519377,0.4690537,105.91,105.88,13.07380917]
[1769935519752,0.4690537,105.91,105.88,0.2]
[1769935519753,0.4690537,105.9,105.88,0.2]
[1769935520260,9.9121204,105.9,105.88,0.2]
[1769935521664,0.4690537,105.9,105.88,0.2]
[1769935522077,9.91210017,105.9,105.88,0.2]
[1769935523059,4.27527085,105.91,105.89,0.48209367]
[1769935523379,9.91050279,105.92,105.89,3.91125593]
[1769935524078,0.4690537,105.91,105.88,13.55585601]
[1769935524271,0.4690537,105.91,105.88,4.11125593]
[1769935524983,9.91050279,105.92,105.89,0.48209367]
[1769935525474,0.4690537,105.91,105.88,3.62916226]
[1769935525864,0.4690537,105.91,105.88,4.11125593]
[1769935526260,0.4690537,105.91,105.88,13.55570658]
[1769935527363,0.4690537,105.88,105.85,1e-08]
[1769935527561,0.4690537,105.87,105.83,3.42916226]
[1769935527773,0.4690537,105.87,105.84,3.42916226]
[1769935527972,0.4690537,105.88,105.84,3.42916226]
[1769935528374,0.4690537,105.88,105.85,3.42916226]
[1769935528684,0.4690537,105.88,105.84,12.87691046]
[1769935528862,0.4690537,105.88,105.85,3.42916226]
[1769935529064,0.4690537,105.88,105.84,12.87691046]
[1769935529263,0.4690537,105.88,105.81,0.2]
[1769935529264,0.4690537,105.89,105.86,0.48209367]
[1769935529983,8.17348681,105.91,105.87,0.48209367]
[1769935530178,0.4690537,105.9,105.87,0.48209367]
[1769935531287,0.4690537,105.9,105.87,9.92755005]
[1769935531581,0.4690537,105.89,105.85,0.48209367]
[1769935531787,0.4690537,105.89,105.86,0.48209367]
[1769935531986,0.4690537,105.88,105.84,13.35901776]
[1769935532168,0.4690537,105.88,105.85,13.35847633]
[1769935533681,0.4690537,105.88,105.85,19.12402587]
[1769935534479,0.4690537,105.88,105.85,18.6419322]
[1769935534787,0.4690537,105.87,105.84,9.44808096]
[1769935535093,0.4690537,105.86,105.83,9.44865629]
[1769935535471,0.4690537,105.86,105.83,19.12546176]
[1769935536270,0.4690537,105.86,105.83,9.93074996]
[1769935536688,0.4690537,105.86,105.83,36.17074996]
[1769935537268,0.4690537,105.86,105.83,26.24]
[1769935537567,0.49302162,105.85,105.82,0.47674195]
[1769935537774,0.49302162,105.85,105.82,26.71674195]
[1769935538186,0.49302162,105.86,105.83,0.47674195]
[1769935538393,0.49302162,105.86,105.83,9.67145375]
[1769935539395,0.49302162,105.86,105.83,19.12000871]
[1769935539572,0.49302162,105.88,105.84,9.67145375]
[1769935539890,0.49302162,105.88,105.85,26.24]
[1769935540087,0.49302162,105.88,105.85,35.91145375]
[1769935540784,0.49302162,105.89,105.86,0.47674195]
[1769935540986,4.27527085,105.91,105.87,0.47674195]
[1769935541189,13.46998265,105.91,105.88,26.24]
[1769935541489,18.63629224,105.92,105.88,26.24]
[1769935541692,22.91156309,105.92,105.88,26.24]
[1769935542574,9.1947118,105.92,105.88,36.16119196]
[1769935542892,9.1947118,105.93,105.88,45.35590376]
[1769935543081,0.49302162,105.92,105.88,45.35590376]
[1769935543869,9.93420202,105.92,105.88,45.35590376]
[1769935544070,19.12891382,105.92,105.88,36.16119196]
[1769935545894,23.39187152,105.93,105.89,9.91109941]
[1769935546070,0.48123107,105.92,105.89,9.91109941]
[1769935546894,9.67594287,105.92,105.89,0.46734537]
[1769935547876,0.48123107,105.92,105.89,0.46734537]
[1769935548076,9.92250819,105.92,105.89,0.46734537]
[1769935549393,9.92250819,105.92,105.89,26.24]
[1769935549394,0.48123107,105.9,105.89,26.24]
[1769935551398,19.11811786,105.91,105.89,26.24]
[1769935553607,0.48123107,105.88,105.83,9.44867504]
[1769935553810,9.67594287,105.87,105.84,26.24]
[1769935554106,0.48123107,105.86,105.84,26.24]
[1769935555308,9.67594287,105.86,105.84,26.24]
[1769935555604,9.67594287,105.86,105.82,9.44954164]
[1769935555605,0.48123107,105.85,105.82,9.91688701]
[1769935555801,0.48123107,105.85,105.84,26.24]
[1769935556109,23.613571,105.88,105.85,0.46734537]
[1769935556110,9.92605853,105.88,105.85,0.46734537]
[1769935557009,9.92605853,105.88,105.84,30.14257952]
[1769935557309,13.36129268,105.88,105.84,26.70734537]
[1769935557697,13.36129268,105.88,105.84,39.59074426]
[1769935558807,13.36129268,105.88,105.84,39.12339889]
[1769935559016,3.91646522,105.91,105.87,0.46734537]
[1769935559307,3.91646522,105.91,105.87,3.90257952]
[1769935560303,0.48123107,105.9,105.86,13.34823745]
[1769935560494,3.91646522,105.9,105.88,26.24]
[1769935560694,13.3588915,105.91,105.88,26.70734537]
[1769935560997,0.48123107,105.9,105.88,26.24]
[1769935561416,3.91646522,105.9,105.88,26.24]
[1769935561593,9.67417959,105.9,105.88,26.24]
[1769935562418,19.11750149,105.9,105.88,26.24]
[1769935565321,4.27527085,105.87,105.84,0.46734537]
[1769935565494,37.73636426,105.89,105.85,26.70734537]
[1769935565817,23.3199068,105.89,105.86,26.24]
[1769935566191,9.19294852,105.88,105.86,26.24]
[1769935568325,9.59935,105.87,105.85,26.24]
[1769935568910,9.59902467,105.86,105.83,0.48906243]
[1769935569113,9.19294852,105.86,105.83,26.72906243]
[1769935569325,18.64009194,105.86,105.83,26.72906243]
[1769935569719,9.44714342,105.86,105.84,0.48906243]
[1769935570097,18.64009194,105.86,105.84,0.48906243]
[1769935570698,18.64009194,105.86,105.83,26.72906243]
[1769935571333,9.44714342,105.86,105.83,26.72906243]
[1769935571509,19.0449154,105.87,105.84,0.48906243]
[1769935571710,19.0449154,105.87,105.84,26.72906243]
[1769935573422,9.19294852,105.86,105.84,26.24]
[1769935573811,19.0449154,105.87,105.84,26.24]
[1769935574212,19.0449154,105.87,105.84,26.72906243]
[1769935577627,19.05133057,105.87,105.84,26.72906243]
[1769935578010,9.85196688,105.87,105.84,26.72906243]
[1769935578206,18.64525442,105.87,105.84,26.72906243]
[1769935578412,19.06505187,105.87,105.84,26.72906243]
[1769935578813,9.44589073,105.87,105.85,0.48906243]
[1769935579013,18.64525442,105.87,105.85,0.48906243]